[Event "Titled Tuesday Blitz November 14 Early 2023"]
[White "Komov, Roman"]
[Black "Arnold, Ken"]
[WhiteFideId "24175714"]
[BlackFideId "2056836"]
[WhiteElo "2744"]
[BlackElo "2435"]
[Result "1-0"]
[Round "2"]
[TimeControl "180+1"]
[Date "2023.11.14"]
[WhiteClock "0:00:22"]
[BlackClock "0:00:05"]
[Board "91"]

1. e4 {[%clk 0:03:00]}  c6 {[%clk 0:02:59]} 2. d4 {[%clk 0:03:00]}  d5 {[%clk 0:03:00]} 3. Nd2 {[%clk 0:03:01]}  dxe4 {[%clk 0:03:00]} 4. Nxe4 {[%clk 0:03:01]}  Bf5 {[%clk 0:03:00]} 5. Ng3 {[%clk 0:03:02]}  Bg6 {[%clk 0:02:59]} 6. h4 {[%clk 0:03:02]}  h6 {[%clk 0:02:59]} 7. Nf3 {[%clk 0:03:03]}  Nd7 {[%clk 0:02:58]} 8. h5 {[%clk 0:03:03]}  Bh7 {[%clk 0:02:58]} 9. Bd3 {[%clk 0:03:04]}  Bxd3 {[%clk 0:02:59]} 10. Qxd3 {[%clk 0:03:05]}  Ngf6 {[%clk 0:02:59]} 11. Bd2 {[%clk 0:03:05]}  e6 {[%clk 0:02:59]} 12. O-O-O {[%clk 0:03:06]}  Qc7 {[%clk 0:03:00]} 13. Ne4 {[%clk 0:03:06]}  Nxe4 {[%clk 0:02:59]} 14. Qxe4 {[%clk 0:03:07]}  Nf6 {[%clk 0:02:59]} 15. Qe2 {[%clk 0:03:06]}  Bd6 {[%clk 0:02:58]} 16. Kb1 {[%clk 0:03:04]}  O-O-O {[%clk 0:02:58]} 17. Ne5 {[%clk 0:02:59]}  Bxe5 {[%clk 0:02:56]} 18. dxe5 {[%clk 0:02:58]}  Nd5 {[%clk 0:02:49]} 19. c4 {[%clk 0:02:50]}  Nb6 {[%clk 0:02:47]} 20. Ba5 {[%clk 0:02:49]}  Rxd1+ {[%clk 0:02:14]} 21. Rxd1 {[%clk 0:02:48]}  Rd8 {[%clk 0:02:13]} 22. Rxd8+ {[%clk 0:02:33]}  Qxd8 {[%clk 0:02:11]} 23. Kc2 {[%clk 0:01:21]}  Qd4 {[%clk 0:02:00]} 24. b3 {[%clk 0:01:20]}  Nd7 {[%clk 0:01:53]} 25. Bc3 {[%clk 0:01:19]}  Qh4 {[%clk 0:01:33]} 26. g3 {[%clk 0:01:19]}  Qh3 {[%clk 0:01:28]} 27. Qf3 {[%clk 0:01:15]}  Qf5+ {[%clk 0:01:24]} 28. Qxf5 {[%clk 0:01:14]}  exf5 {[%clk 0:01:25]} 29. e6 {[%clk 0:01:15]}  fxe6 {[%clk 0:01:23]} 30. Bxg7 {[%clk 0:01:15]}  e5 {[%clk 0:00:41]} 31. Bxh6 {[%clk 0:01:12]}  Nf6 {[%clk 0:00:40]} 32. Bg7 {[%clk 0:01:13]}  Nxh5 {[%clk 0:00:39]} 33. Bxe5 {[%clk 0:01:13]}  Kd7 {[%clk 0:00:39]} 34. Kd3 {[%clk 0:00:52]}  Ke6 {[%clk 0:00:38]} 35. Bd4 {[%clk 0:00:52]}  b6 {[%clk 0:00:35]} 36. b4 {[%clk 0:00:52]}  a5 {[%clk 0:00:17]} 37. a3 {[%clk 0:00:50]}  axb4 {[%clk 0:00:17]} 38. axb4 {[%clk 0:00:51]}  b5 {[%clk 0:00:17]} 39. Bc3 {[%clk 0:00:44]}  Kd6 {[%clk 0:00:16]} 40. Bb2 {[%clk 0:00:38]}  Ke6 {[%clk 0:00:16]} 41. Bd4 {[%clk 0:00:33]}  Kd6 {[%clk 0:00:16]} 42. Bh8 {[%clk 0:00:30]}  Ke6 {[%clk 0:00:16]} 43. Kd4 {[%clk 0:00:30]}  Kd6 {[%clk 0:00:16]} 44. Kc3 {[%clk 0:00:26]}  Ke6 {[%clk 0:00:15]} 45. Kd3 {[%clk 0:00:27]}  Kd6 {[%clk 0:00:15]} 46. Kd4 {[%clk 0:00:28]}  bxc4 {[%clk 0:00:13]} 47. Kxc4 {[%clk 0:00:28]}  Kd7 {[%clk 0:00:12]} 48. Kc5 {[%clk 0:00:29]}  Kc7 {[%clk 0:00:13]} 49. Bd4 {[%clk 0:00:22]}  Kd7 {[%clk 0:00:12]} 50. Be5 {[%clk 0:00:22]}  f4 {[%clk 0:00:05]} 51. g4 {[%clk 0:00:22]} 1-0


[Site "https://www.chess.com"]

[Event "Titled Tuesday Blitz November 14 Early 2023"]
[White "Atakhan, Abtin"]
[Black "Jackalhead_Anubis"]
[WhiteFideId "22502203"]
[WhiteElo "2741"]
[BlackElo "2419"]
[Result "1-0"]
[Round "2"]
[TimeControl "180+1"]
[Date "2023.11.14"]
[WhiteClock "0:00:05"]
[BlackClock "0:00:12"]
[Board "94"]

1. c4 {[%clk 0:03:00]}  g6 {[%clk 0:02:54]} 2. g3 {[%clk 0:02:56]}  Bg7 {[%clk 0:02:54]} 3. Bg2 {[%clk 0:02:57]}  c5 {[%clk 0:02:54]} 4. Nc3 {[%clk 0:02:57]}  Nc6 {[%clk 0:02:54]} 5. d3 {[%clk 0:02:55]}  e6 {[%clk 0:02:53]} 6. h4 {[%clk 0:02:50]}  h5 {[%clk 0:02:52]} 7. Nf3 {[%clk 0:02:47]}  Nge7 {[%clk 0:02:52]} 8. Ng5 {[%clk 0:02:45]}  O-O {[%clk 0:02:39]} 9. e4 {[%clk 0:02:28]}  a6 {[%clk 0:02:36]} 10. g4 {[%clk 0:02:22]}  hxg4 {[%clk 0:02:32]} 11. Qxg4 {[%clk 0:02:22]}  d5 {[%clk 0:02:21]} 12. h5 {[%clk 0:02:21]}  Ne5 {[%clk 0:02:20]} 13. Qh3 {[%clk 0:02:14]}  gxh5 {[%clk 0:02:16]} 14. Qxh5 {[%clk 0:02:10]}  Re8 {[%clk 0:02:14]} 15. f4 {[%clk 0:01:49]}  Nxd3+ {[%clk 0:02:10]} 16. Ke2 {[%clk 0:01:45]}  Nxc1+ {[%clk 0:02:08]} 17. Raxc1 {[%clk 0:01:44]}  Ng6 {[%clk 0:02:09]} 18. Qh2 {[%clk 0:01:28]}  dxc4 {[%clk 0:02:02]} 19. Rcd1 {[%clk 0:01:24]}  Qf6 {[%clk 0:02:01]} 20. Rhf1 {[%clk 0:01:13]}  e5 {[%clk 0:01:26]} 21. Qh7+ {[%clk 0:00:55]}  Kf8 {[%clk 0:01:24]} 22. Nd5 {[%clk 0:00:56]}  Nxf4+ {[%clk 0:00:59]} 23. Rxf4 {[%clk 0:00:32]}  Qxg5 {[%clk 0:00:57]} 24. Rxf7+ {[%clk 0:00:32]}  Kxf7 {[%clk 0:00:56]} 25. Rf1+ {[%clk 0:00:33]}  Ke6 {[%clk 0:00:56]} 26. Rf6+ {[%clk 0:00:31]}  Qxf6 {[%clk 0:00:21]} 27. Nxf6 {[%clk 0:00:30]}  Bxf6 {[%clk 0:00:22]} 28. Qc7 {[%clk 0:00:28]}  Rh8 {[%clk 0:00:19]} 29. Bf3 {[%clk 0:00:25]}  Rh4 {[%clk 0:00:18]} 30. Qxc5 {[%clk 0:00:19]}  Bd7 {[%clk 0:00:18]} 31. Qxc4+ {[%clk 0:00:19]}  Ke7 {[%clk 0:00:19]} 32. Qc5+ {[%clk 0:00:20]}  Ke8 {[%clk 0:00:19]} 33. Qd6 {[%clk 0:00:19]}  Be7 {[%clk 0:00:17]} 34. Qxe5 {[%clk 0:00:18]}  Bb5+ {[%clk 0:00:17]} 35. Kf2 {[%clk 0:00:17]}  Rd8 {[%clk 0:00:18]} 36. Bh5+ {[%clk 0:00:16]}  Kf8 {[%clk 0:00:18]} 37. Qf5+ {[%clk 0:00:15]}  Kg7 {[%clk 0:00:18]} 38. Qg6+ {[%clk 0:00:13]}  Kh8 {[%clk 0:00:18]} 39. Qh6+ {[%clk 0:00:09]}  Kg8 {[%clk 0:00:18]} 40. Qe6+ {[%clk 0:00:08]}  Kh8 {[%clk 0:00:16]} 41. Qxe7 {[%clk 0:00:06]}  Rd2+ {[%clk 0:00:16]} 42. Ke1 {[%clk 0:00:05]}  Rhh2 {[%clk 0:00:14]} 43. Qf6+ {[%clk 0:00:05]}  Kh7 {[%clk 0:00:14]} 44. Qg6+ {[%clk 0:00:05]}  Kh8 {[%clk 0:00:14]} 45. Qf6+ {[%clk 0:00:05]}  Kh7 {[%clk 0:00:14]} 46. Bg6+ {[%clk 0:00:05]}  Kg8 {[%clk 0:00:13]} 47. Qf7+ {[%clk 0:00:04]}  Kh8 {[%clk 0:00:12]} 48. Qf8# {[%clk 0:00:05]} 1-0


[Site "https://www.chess.com"]

[Event "Titled Tuesday Blitz November 14 Early 2023"]
[White "Halkias, Stelios"]
[Black "Mejia, Cherry Ann"]
[WhiteFideId "4201809"]
[BlackFideId "5206880"]
[WhiteElo "2721"]
[BlackElo "2373"]
[Result "1-0"]
[Round "2"]
[TimeControl "180+1"]
[Date "2023.11.14"]
[WhiteClock "0:01:06"]
[BlackClock "0:00:07"]
[Board "97"]

1. Nf3 {[%clk 0:02:57]}  d5 {[%clk 0:02:58]} 2. d4 {[%clk 0:02:55]}  Nf6 {[%clk 0:02:58]} 3. c4 {[%clk 0:02:54]}  dxc4 {[%clk 0:02:58]} 4. e3 {[%clk 0:02:54]}  e6 {[%clk 0:02:55]} 5. Bxc4 {[%clk 0:02:54]}  c5 {[%clk 0:02:55]} 6. O-O {[%clk 0:02:54]}  a6 {[%clk 0:02:55]} 7. Re1 {[%clk 0:02:54]}  b5 {[%clk 0:02:52]} 8. Bf1 {[%clk 0:02:54]}  Bb7 {[%clk 0:02:53]} 9. a4 {[%clk 0:02:54]}  b4 {[%clk 0:02:50]} 10. Nbd2 {[%clk 0:02:54]}  Nc6 {[%clk 0:02:43]} 11. Nc4 {[%clk 0:02:51]}  cxd4 {[%clk 0:02:39]} 12. exd4 {[%clk 0:02:50]}  Be7 {[%clk 0:02:40]} 13. a5 {[%clk 0:02:50]}  Nd5 {[%clk 0:02:33]} 14. Nfe5 {[%clk 0:02:48]}  Nxe5 {[%clk 0:02:29]} 15. dxe5 {[%clk 0:02:41]}  O-O {[%clk 0:02:26]} 16. Qg4 {[%clk 0:02:41]}  Kh8 {[%clk 0:02:17]} 17. Qh3 {[%clk 0:02:35]}  Rc8 {[%clk 0:02:04]} 18. Bd3 {[%clk 0:02:33]}  g6 {[%clk 0:02:04]} 19. Bh6 {[%clk 0:02:32]}  Re8 {[%clk 0:02:02]} 20. Rad1 {[%clk 0:02:29]}  Bg5 {[%clk 0:01:53]} 21. Bxg5 {[%clk 0:01:43]}  Qxg5 {[%clk 0:01:52]} 22. Nd6 {[%clk 0:01:44]}  Re7 {[%clk 0:01:34]} 23. Nxc8 {[%clk 0:01:42]}  Bxc8 {[%clk 0:01:23]} 24. Qg3 {[%clk 0:01:41]}  Qh6 {[%clk 0:01:15]} 25. Be4 {[%clk 0:01:38]}  Bb7 {[%clk 0:01:13]} 26. h4 {[%clk 0:01:36]}  Rc7 {[%clk 0:01:11]} 27. Qg5 {[%clk 0:01:34]}  Qxg5 {[%clk 0:01:07]} 28. hxg5 {[%clk 0:01:33]}  Rc5 {[%clk 0:01:07]} 29. Ra1 {[%clk 0:01:21]}  Rc4 {[%clk 0:00:46]} 30. f3 {[%clk 0:01:19]}  Kg7 {[%clk 0:00:44]} 31. Rac1 {[%clk 0:01:17]}  Rd4 {[%clk 0:00:42]} 32. Red1 {[%clk 0:01:16]}  Rxd1+ {[%clk 0:00:36]} 33. Rxd1 {[%clk 0:01:16]}  h6 {[%clk 0:00:31]} 34. gxh6+ {[%clk 0:01:13]}  Kxh6 {[%clk 0:00:32]} 35. Kf2 {[%clk 0:01:14]}  Kg5 {[%clk 0:00:30]} 36. g3 {[%clk 0:01:14]}  f5 {[%clk 0:00:30]} 37. exf6 {[%clk 0:01:12]}  Kxf6 {[%clk 0:00:30]} 38. Bxd5 {[%clk 0:01:12]}  Bxd5 {[%clk 0:00:28]} 39. Rc1 {[%clk 0:01:12]}  Ke5 {[%clk 0:00:27]} 40. Ke3 {[%clk 0:01:13]}  Kd6 {[%clk 0:00:28]} 41. f4 {[%clk 0:01:11]}  e5 {[%clk 0:00:27]} 42. fxe5+ {[%clk 0:01:11]}  Kxe5 {[%clk 0:00:27]} 43. Rc7 {[%clk 0:01:10]}  Kd6 {[%clk 0:00:22]} 44. Rg7 {[%clk 0:01:09]}  Kc5 {[%clk 0:00:19]} 45. Rxg6 {[%clk 0:01:08]}  Bc4 {[%clk 0:00:10]} 46. Rg5+ {[%clk 0:01:06]}  Bd5 {[%clk 0:00:07]} 47. g4 {[%clk 0:01:06]} 1-0


[Site "https://www.chess.com"]

[Event "Titled Tuesday Blitz November 14 Early 2023"]
[White "Begmuratov, Alisher"]
[Black "Lebedev, Artem S."]
[WhiteFideId "14203367"]
[BlackFideId "34272747"]
[WhiteElo "2715"]
[BlackElo "2332"]
[Result "1/2-1/2"]
[Round "2"]
[TimeControl "180+1"]
[Date "2023.11.14"]
[WhiteClock "0:00:20"]
[BlackClock "0:00:05"]
[Board "101"]

1. e4 {[%clk 0:03:00]}  e5 {[%clk 0:02:58]} 2. Nf3 {[%clk 0:03:00]}  Nc6 {[%clk 0:02:59]} 3. Bb5 {[%clk 0:03:00]}  a6 {[%clk 0:02:59]} 4. Bxc6 {[%clk 0:03:00]}  dxc6 {[%clk 0:02:59]} 5. h3 {[%clk 0:03:01]}  Bd6 {[%clk 0:02:58]} 6. O-O {[%clk 0:03:00]}  Ne7 {[%clk 0:02:54]} 7. d3 {[%clk 0:02:56]}  f6 {[%clk 0:02:53]} 8. Nbd2 {[%clk 0:02:55]}  O-O {[%clk 0:02:54]} 9. b3 {[%clk 0:02:56]}  c5 {[%clk 0:02:53]} 10. Bb2 {[%clk 0:02:56]}  b6 {[%clk 0:02:53]} 11. Nc4 {[%clk 0:02:56]}  Ng6 {[%clk 0:02:52]} 12. Qd2 {[%clk 0:02:54]}  Be6 {[%clk 0:02:49]} 13. Ne3 {[%clk 0:02:51]}  Qd7 {[%clk 0:02:47]} 14. Kh2 {[%clk 0:02:50]}  f5 {[%clk 0:02:30]} 15. Ng5 {[%clk 0:02:33]}  f4 {[%clk 0:02:20]} 16. Nc4 {[%clk 0:02:19]}  f3 {[%clk 0:01:31]} 17. g3 {[%clk 0:02:01]}  Rf6 {[%clk 0:01:22]} 18. Nxe6 {[%clk 0:01:56]}  Qxe6 {[%clk 0:01:22]} 19. Ne3 {[%clk 0:01:54]}  Raf8 {[%clk 0:01:10]} 20. Nf5 {[%clk 0:01:43]}  Ne7 {[%clk 0:01:08]} 21. g4 {[%clk 0:01:41]}  g6 {[%clk 0:01:02]} 22. Rg1 {[%clk 0:01:37]}  Kh8 {[%clk 0:00:57]} 23. g5 {[%clk 0:01:23]}  R6f7 {[%clk 0:00:38]} 24. Nh6 {[%clk 0:01:22]}  Rf4 {[%clk 0:00:34]} 25. Ng4 {[%clk 0:01:22]}  Nc6 {[%clk 0:00:29]} 26. Rg3 {[%clk 0:01:16]}  Be7 {[%clk 0:00:26]} 27. Nf6 {[%clk 0:01:10]}  Bxf6 {[%clk 0:00:22]} 28. gxf6 {[%clk 0:01:10]}  R8xf6 {[%clk 0:00:20]} 29. Rag1 {[%clk 0:01:10]}  Kg7 {[%clk 0:00:12]} 30. Rg4 {[%clk 0:01:06]}  Rxg4 {[%clk 0:00:12]} 31. Rxg4 {[%clk 0:01:06]}  h5 {[%clk 0:00:11]} 32. Rg5 {[%clk 0:01:04]}  Kh7 {[%clk 0:00:10]} 33. Rg3 {[%clk 0:01:01]}  Rf4 {[%clk 0:00:09]} 34. Qd1 {[%clk 0:01:00]}  Qf6 {[%clk 0:00:06]} 35. Bc1 {[%clk 0:00:57]}  Nd4 {[%clk 0:00:03]} 36. Qh1 {[%clk 0:00:35]}  Ne2 {[%clk 0:00:02]} 37. Bxf4 {[%clk 0:00:35]}  Qxf4 {[%clk 0:00:02]} 38. Qxf3 {[%clk 0:00:35]}  Nxg3 {[%clk 0:00:02]} 39. Qxf4 {[%clk 0:00:27]}  exf4 {[%clk 0:00:03]} 40. fxg3 {[%clk 0:00:27]}  fxg3+ {[%clk 0:00:04]} 41. Kxg3 {[%clk 0:00:27]}  g5 {[%clk 0:00:04]} 42. c3 {[%clk 0:00:26]}  Kg6 {[%clk 0:00:04]} 43. Kf3 {[%clk 0:00:22]}  Kf6 {[%clk 0:00:05]} 44. Ke3 {[%clk 0:00:21]}  Ke6 {[%clk 0:00:04]} 45. a3 {[%clk 0:00:20]}  a5 {[%clk 0:00:03]} 46. a4 {[%clk 0:00:19]}  Ke5 {[%clk 0:00:03]} 47. d4+ {[%clk 0:00:18]}  cxd4+ {[%clk 0:00:03]} 48. cxd4+ {[%clk 0:00:19]}  Ke6 {[%clk 0:00:04]} 49. Kf3 {[%clk 0:00:19]}  c6 {[%clk 0:00:03]} 50. Ke3 {[%clk 0:00:19]}  Kd6 {[%clk 0:00:04]} 51. Kf3 {[%clk 0:00:20]}  Ke6 {[%clk 0:00:04]} 52. Ke3 {[%clk 0:00:20]}  Kd6 {[%clk 0:00:05]} 53. Kf2 {[%clk 0:00:20]}  Ke6 {[%clk 0:00:05]} 54. Kg3 {[%clk 0:00:20]}  Kd6 {[%clk 0:00:05]} 55. Kf3 {[%clk 0:00:20]}  Ke6 {[%clk 0:00:05]} 1/2-1/2


[Site "https://www.chess.com"]

[Event "Titled Tuesday Blitz November 14 Early 2023"]
[White "Biernacki, Mark"]
[Black "Chinguun, Sumiya"]
[WhiteFideId "2082322"]
[BlackFideId "4902572"]
[WhiteElo "2331"]
[BlackElo "2711"]
[Result "0-1"]
[Round "2"]
[TimeControl "180+1"]
[Date "2023.11.14"]
[WhiteClock "0:00:00"]
[BlackClock "0:01:42"]
[Board "102"]

1. e4 {[%clk 0:02:58]}  c5 {[%clk 0:02:59]} 2. Nc3 {[%clk 0:02:58]}  Nc6 {[%clk 0:02:58]} 3. Bb5 {[%clk 0:02:58]}  Nd4 {[%clk 0:02:58]} 4. Nf3 {[%clk 0:02:58]}  a6 {[%clk 0:02:56]} 5. Bd3 {[%clk 0:02:58]}  Nc6 {[%clk 0:02:57]} 6. O-O {[%clk 0:02:57]}  d6 {[%clk 0:02:57]} 7. b3 {[%clk 0:02:51]}  e5 {[%clk 0:02:54]} 8. Nd5 {[%clk 0:02:48]}  Nf6 {[%clk 0:02:54]} 9. Nxf6+ {[%clk 0:02:35]}  gxf6 {[%clk 0:02:51]} 10. Bb2 {[%clk 0:02:20]}  Be6 {[%clk 0:02:51]} 11. c3 {[%clk 0:02:17]}  Rg8 {[%clk 0:02:47]} 12. Kh1 {[%clk 0:02:17]}  Qd7 {[%clk 0:02:45]} 13. Rg1 {[%clk 0:02:11]}  O-O-O {[%clk 0:02:42]} 14. Bc2 {[%clk 0:02:10]}  d5 {[%clk 0:02:43]} 15. d3 {[%clk 0:01:49]}  d4 {[%clk 0:02:42]} 16. c4 {[%clk 0:01:38]}  f5 {[%clk 0:02:41]} 17. exf5 {[%clk 0:01:03]}  Bxf5 {[%clk 0:02:40]} 18. b4 {[%clk 0:01:02]}  cxb4 {[%clk 0:02:34]} 19. Ba4 {[%clk 0:01:01]}  f6 {[%clk 0:02:33]} 20. a3 {[%clk 0:00:59]}  Bg4 {[%clk 0:02:28]} 21. axb4 {[%clk 0:00:57]}  Bxb4 {[%clk 0:02:28]} 22. Ba3 {[%clk 0:00:57]}  Bxa3 {[%clk 0:02:25]} 23. Rxa3 {[%clk 0:00:58]}  Rg7 {[%clk 0:02:20]} 24. h3 {[%clk 0:00:53]}  Bh5 {[%clk 0:02:16]} 25. g4 {[%clk 0:00:36]}  Bg6 {[%clk 0:02:14]} 26. Rb3 {[%clk 0:00:35]}  e4 {[%clk 0:02:12]} 27. dxe4 {[%clk 0:00:30]}  Bxe4 {[%clk 0:02:12]} 28. Kh2 {[%clk 0:00:30]}  Qd6+ {[%clk 0:02:08]} 29. Rg3 {[%clk 0:00:30]}  Na5 {[%clk 0:02:04]} 30. Rb2 {[%clk 0:00:23]}  Nxc4 {[%clk 0:01:59]} 31. Qc1 {[%clk 0:00:22]}  Rc7 {[%clk 0:01:57]} 32. Rb3 {[%clk 0:00:14]}  Ne5 {[%clk 0:01:54]} 33. Qf4 {[%clk 0:00:02]}  Nxf3+ {[%clk 0:01:51]} 34. Rbxf3 {[%clk 0:00:02]}  Bxf3 {[%clk 0:01:51]} 35. Qxf3 {[%clk 0:00:02]}  Rc3 {[%clk 0:01:50]} 36. Qf5+ {[%clk 0:00:03]}  Kb8 {[%clk 0:01:50]} 37. Qxh7 {[%clk 0:00:03]}  Rxg3 {[%clk 0:01:49]} 38. fxg3 {[%clk 0:00:03]}  Rc8 {[%clk 0:01:50]} 39. Bc2 {[%clk 0:00:04]}  Qb4 {[%clk 0:01:45]} 40. Be4 {[%clk 0:00:03]}  Rc7 {[%clk 0:01:44]} 41. Qg8+ {[%clk 0:00:03]}  Ka7 {[%clk 0:01:43]} 42. Qf7 {[%clk 0:00:00]}  Rxf7 {[%clk 0:01:42]} 0-1


[Site "https://www.chess.com"]

[Event "Titled Tuesday Blitz November 14 Early 2023"]
[White "Akhmedinov, Satbek"]
[Black "Senft, Sean"]
[WhiteFideId "13714287"]
[BlackFideId "2044960"]
[WhiteElo "2698"]
[BlackElo "2286"]
[Result "1-0"]
[Round "2"]
[TimeControl "180+1"]
[Date "2023.11.14"]
[WhiteClock "0:00:11"]
[BlackClock "0:00:04"]
[Board "107"]

1. e4 {[%clk 0:03:00]}  c5 {[%clk 0:02:59]} 2. Nf3 {[%clk 0:03:01]}  d6 {[%clk 0:03:00]} 3. Bb5+ {[%clk 0:03:02]}  Bd7 {[%clk 0:02:58]} 4. c4 {[%clk 0:03:00]}  Nf6 {[%clk 0:02:58]} 5. Nc3 {[%clk 0:03:01]}  g6 {[%clk 0:02:58]} 6. d4 {[%clk 0:03:01]}  cxd4 {[%clk 0:02:58]} 7. Nxd4 {[%clk 0:03:02]}  Bg7 {[%clk 0:02:58]} 8. Be3 {[%clk 0:03:03]}  O-O {[%clk 0:02:58]} 9. f3 {[%clk 0:03:04]}  Nc6 {[%clk 0:02:59]} 10. O-O {[%clk 0:03:05]}  Nxd4 {[%clk 0:02:57]} 11. Bxd4 {[%clk 0:03:04]}  Bxb5 {[%clk 0:02:57]} 12. cxb5 {[%clk 0:03:05]}  Nd7 {[%clk 0:02:55]} 13. Bxg7 {[%clk 0:03:04]}  Kxg7 {[%clk 0:02:56]} 14. Qd4+ {[%clk 0:03:04]}  Kg8 {[%clk 0:02:56]} 15. Rac1 {[%clk 0:03:05]}  Qb6 {[%clk 0:02:56]} 16. Rfd1 {[%clk 0:03:01]}  Qxd4+ {[%clk 0:02:55]} 17. Rxd4 {[%clk 0:03:02]}  Rac8 {[%clk 0:02:55]} 18. Kf2 {[%clk 0:02:59]}  Rc5 {[%clk 0:02:54]} 19. Ra4 {[%clk 0:02:51]}  Ra8 {[%clk 0:02:36]} 20. Re1 {[%clk 0:01:30]}  Nb6 {[%clk 0:02:34]} 21. Rb4 {[%clk 0:01:28]}  Kf8 {[%clk 0:02:02]} 22. Kg3 {[%clk 0:01:26]}  e6 {[%clk 0:01:58]} 23. a4 {[%clk 0:01:25]}  Rc4 {[%clk 0:01:50]} 24. Rxc4 {[%clk 0:01:23]}  Nxc4 {[%clk 0:01:51]} 25. b3 {[%clk 0:01:10]}  Nb6 {[%clk 0:01:44]} 26. Rd1 {[%clk 0:01:07]}  Ke7 {[%clk 0:01:44]} 27. a5 {[%clk 0:01:04]}  Nd7 {[%clk 0:01:44]} 28. Rc1 {[%clk 0:01:04]}  Kd8 {[%clk 0:01:38]} 29. Na4 {[%clk 0:00:56]}  Rc8 {[%clk 0:01:37]} 30. Rxc8+ {[%clk 0:00:54]}  Kxc8 {[%clk 0:01:38]} 31. f4 {[%clk 0:00:55]}  Kc7 {[%clk 0:01:01]} 32. b4 {[%clk 0:00:53]}  a6 {[%clk 0:00:57]} 33. Nc3 {[%clk 0:00:49]}  Nf6 {[%clk 0:00:38]} 34. Kf3 {[%clk 0:00:50]}  d5 {[%clk 0:00:34]} 35. e5 {[%clk 0:00:49]}  Ne8 {[%clk 0:00:28]} 36. Ke3 {[%clk 0:00:41]}  Kd7 {[%clk 0:00:28]} 37. b6 {[%clk 0:00:32]}  h5 {[%clk 0:00:18]} 38. Kd4 {[%clk 0:00:26]}  Kc6 {[%clk 0:00:18]} 39. h3 {[%clk 0:00:14]}  h4 {[%clk 0:00:18]} 40. Nd1 {[%clk 0:00:12]}  Ng7 {[%clk 0:00:19]} 41. Nf2 {[%clk 0:00:09]}  Nf5+ {[%clk 0:00:19]} 42. Kc3 {[%clk 0:00:10]}  Kb5 {[%clk 0:00:19]} 43. Ng4 {[%clk 0:00:10]}  Ne3 {[%clk 0:00:16]} 44. Nh6 {[%clk 0:00:09]}  Nxg2 {[%clk 0:00:15]} 45. Nxf7 {[%clk 0:00:09]}  Nxf4 {[%clk 0:00:16]} 46. Nd8 {[%clk 0:00:09]}  Nxh3 {[%clk 0:00:15]} 47. Nxb7 {[%clk 0:00:09]}  Nf4 {[%clk 0:00:12]} 48. Nd8 {[%clk 0:00:10]}  d4+ {[%clk 0:00:04]} 49. Kb3 {[%clk 0:00:10]}  d3 {[%clk 0:00:03]} 50. b7 {[%clk 0:00:11]}  d2 {[%clk 0:00:04]} 51. b8=Q# {[%clk 0:00:11]} 1-0


[Site "https://www.chess.com"]

[Event "Titled Tuesday Blitz November 14 Early 2023"]
[White "Bommini Mounika Akshaya"]
[Black "Hasangatin, Ramil"]
[WhiteFideId "25019872"]
[BlackFideId "4122160"]
[WhiteElo "2258"]
[BlackElo "2689"]
[Result "1/2-1/2"]
[Round "2"]
[TimeControl "180+1"]
[Date "2023.11.14"]
[WhiteClock "0:00:12"]
[BlackClock "0:00:07"]
[Board "108"]

1. d4 {[%clk 0:02:31]}  d6 {[%clk 0:02:28]} 2. c4 {[%clk 0:02:28]}  e5 {[%clk 0:02:28]} 3. Nf3 {[%clk 0:02:25]}  e4 {[%clk 0:02:28]} 4. Nfd2 {[%clk 0:02:25]}  f5 {[%clk 0:02:27]} 5. Nc3 {[%clk 0:02:25]}  Nf6 {[%clk 0:02:28]} 6. e3 {[%clk 0:02:25]}  c6 {[%clk 0:02:26]} 7. Be2 {[%clk 0:02:23]}  d5 {[%clk 0:02:27]} 8. O-O {[%clk 0:02:14]}  Bd6 {[%clk 0:02:26]} 9. cxd5 {[%clk 0:02:09]}  cxd5 {[%clk 0:02:26]} 10. Nb5 {[%clk 0:02:09]}  Be7 {[%clk 0:02:25]} 11. Nb3 {[%clk 0:01:52]}  Nc6 {[%clk 0:02:24]} 12. Bd2 {[%clk 0:01:43]}  O-O {[%clk 0:02:23]} 13. Rc1 {[%clk 0:01:43]}  a6 {[%clk 0:02:21]} 14. Nc3 {[%clk 0:01:41]}  Bd6 {[%clk 0:02:21]} 15. Na4 {[%clk 0:01:36]}  Qe7 {[%clk 0:02:05]} 16. Nb6 {[%clk 0:01:10]}  Rb8 {[%clk 0:02:05]} 17. Nc5 {[%clk 0:01:07]}  Be6 {[%clk 0:01:46]} 18. Nxa6 {[%clk 0:01:04]}  bxa6 {[%clk 0:01:39]} 19. Rxc6 {[%clk 0:01:04]}  Rfd8 {[%clk 0:01:30]} 20. h3 {[%clk 0:00:58]}  g5 {[%clk 0:01:10]} 21. Bxa6 {[%clk 0:00:51]}  f4 {[%clk 0:01:10]} 22. exf4 {[%clk 0:00:44]}  gxf4 {[%clk 0:01:10]} 23. Kh1 {[%clk 0:00:31]}  f3 {[%clk 0:01:10]} 24. Rg1 {[%clk 0:00:31]}  Kh8 {[%clk 0:01:05]} 25. gxf3 {[%clk 0:00:25]}  Bxh3 {[%clk 0:01:04]} 26. Bg5 {[%clk 0:00:24]}  Rg8 {[%clk 0:00:59]} 27. f4 {[%clk 0:00:22]}  Bf5 {[%clk 0:00:52]} 28. Qb3 {[%clk 0:00:18]}  Qe6 {[%clk 0:00:34]} 29. Qg3 {[%clk 0:00:18]}  e3 {[%clk 0:00:29]} 30. Qh4 {[%clk 0:00:16]}  Ne4 {[%clk 0:00:28]} 31. fxe3 {[%clk 0:00:14]}  Rg6 {[%clk 0:00:22]} 32. Be2 {[%clk 0:00:11]}  Rbg8 {[%clk 0:00:17]} 33. Bh5 {[%clk 0:00:11]}  R6g7 {[%clk 0:00:17]} 34. Na4 {[%clk 0:00:07]}  Qd7 {[%clk 0:00:16]} 35. Ra6 {[%clk 0:00:07]}  Qb5 {[%clk 0:00:15]} 36. Rxd6 {[%clk 0:00:06]}  Nxd6 {[%clk 0:00:13]} 37. Bf6 {[%clk 0:00:07]}  Qd7 {[%clk 0:00:09]} 38. Rxg7 {[%clk 0:00:06]}  Rxg7 {[%clk 0:00:09]} 39. Qg5 {[%clk 0:00:06]}  Kg8 {[%clk 0:00:06]} 40. Qxg7+ {[%clk 0:00:06]}  Qxg7 {[%clk 0:00:07]} 41. Bxg7 {[%clk 0:00:06]}  Kxg7 {[%clk 0:00:07]} 42. Nc5 {[%clk 0:00:07]}  Nc4 {[%clk 0:00:07]} 43. Bf3 {[%clk 0:00:07]}  Nxe3 {[%clk 0:00:06]} 44. Bxd5 {[%clk 0:00:07]}  Nxd5 {[%clk 0:00:06]} 45. a3 {[%clk 0:00:07]}  Nxf4 {[%clk 0:00:05]} 46. b4 {[%clk 0:00:07]}  Nd5 {[%clk 0:00:05]} 47. b5 {[%clk 0:00:07]}  Nb6 {[%clk 0:00:03]} 48. a4 {[%clk 0:00:08]}  Bc8 {[%clk 0:00:02]} 49. a5 {[%clk 0:00:08]}  Nc4 {[%clk 0:00:03]} 50. b6 {[%clk 0:00:08]}  Nxa5 {[%clk 0:00:02]} 51. Kg2 {[%clk 0:00:08]}  Nb7 {[%clk 0:00:02]} 52. Kg3 {[%clk 0:00:08]}  Nxc5 {[%clk 0:00:02]} 53. dxc5 {[%clk 0:00:08]}  Bb7 {[%clk 0:00:03]} 54. Kf4 {[%clk 0:00:08]}  Kg6 {[%clk 0:00:04]} 55. Ke5 {[%clk 0:00:09]}  h5 {[%clk 0:00:04]} 56. Kd6 {[%clk 0:00:09]}  h4 {[%clk 0:00:04]} 57. c6 {[%clk 0:00:10]}  Bxc6 {[%clk 0:00:03]} 58. Kxc6 {[%clk 0:00:10]}  h3 {[%clk 0:00:04]} 59. b7 {[%clk 0:00:11]}  h2 {[%clk 0:00:05]} 60. b8=Q {[%clk 0:00:11]}  h1=Q+ {[%clk 0:00:06]} 61. Kc7 {[%clk 0:00:11]}  Qc1+ {[%clk 0:00:07]} 62. Kd7 {[%clk 0:00:11]}  Qd2+ {[%clk 0:00:07]} 63. Qd6+ {[%clk 0:00:11]}  Qxd6+ {[%clk 0:00:07]} 64. Kxd6 {[%clk 0:00:12]} 1/2-1/2


[Site "https://www.chess.com"]